fUSD/lending_fUSD_20260621
["ID","MTS","AMOUNT","RATE_DAILY","PERIOD"]
[425958266,1782043889000,-500.0,0.00028493,2]
[425958267,1782043889000,-500.0,0.00028493,2]
[425958272,1782043889000,-9051.47,0.00028493,2]
[425958276,1782043889000,-741.24,0.00028493,2]
[425958268,1782043889000,-500.0,0.00028493,2]
[425958277,1782043889000,-7571.98,0.00028493,2]
[425958289,1782043889000,-500.0,0.00028493,2]
[425958278,1782043889000,-5271.59,0.00028493,2]
[425958282,1782043889000,-1177.81,0.00028493,2]
[425958280,1782043889000,-500.0,0.00028493,2]
[425958285,1782043889000,-500.0,0.00028493,2]
[425958294,1782043889000,-500.0,0.00028493,2]
[425958288,1782043889000,-5284.4,0.00028493,2]
[425958286,1782043889000,-3970.75,0.00028493,2]
[425958291,1782043889000,-500.0,0.00028493,2]
[425958287,1782043889000,-3554.41,0.00028493,2]
[425958292,1782043889000,-500.0,0.00028493,2]
[425958290,1782043889000,-500.0,0.00028493,2]
[425958271,1782043889000,-6743.01,0.00028493,2]
[425958281,1782043889000,-4082.48,0.00028493,2]
[425958262,1782043889000,-3570.15,0.00028493,2]
[425958243,1782043889000,-500.0,0.00028493,2]
[425958270,1782043889000,-500.0,0.00028493,2]
[425958239,1782043889000,-500.0,0.00028493,2]
[425958238,1782043889000,-500.0,0.00028493,2]
[425958240,1782043889000,-500.0,0.00028493,2]
[425958241,1782043889000,-500.0,0.00028493,2]
[425958242,1782043889000,-500.0,0.00028493,2]
[425958244,1782043889000,-880.84,0.00028493,2]
[425958245,1782043889000,-500.0,0.00028493,2]
[425958248,1782043889000,-5756.01,0.00028493,2]
[425958247,1782043889000,-2000.0,0.00028493,2]
[425958246,1782043889000,-3502.01,0.00028493,2]
[425958249,1782043889000,-500.0,0.00028493,2]
[425958257,1782043889000,-9762.8,0.00028493,2]
[425958269,1782043889000,-3748.36,0.00028493,2]
[425958261,1782043889000,-640.28589283,0.00028493,2]
[425958254,1782043889000,-9379.81,0.00028493,2]
[425958252,1782043889000,-500.0,0.00028493,2]
[425958250,1782043889000,-500.0,0.00028493,2]
[425958253,1782043889000,-500.0,0.00028493,2]
[425958251,1782043889000,-3494.12,0.00028493,2]
[425958256,1782043889000,-500.0,0.00028493,2]
[425958255,1782043889000,-9193.94,0.00028493,2]
[425958259,1782043889000,-542.64,0.00028493,2]
[425958260,1782043889000,-1090.99,0.00028493,2]
[425958293,1782043889000,-500.0,0.00028493,2]
[425958263,1782043889000,-500.0,0.00028493,2]
[425958264,1782043889000,-3953.0,0.00028493,2]
[425958258,1782043889000,-13098.52,0.00028493,2]
[425958295,1782043889000,-500.0,0.00028493,2]
[425958326,1782043889000,-513.46,0.00028493,2]
[425958302,1782043889000,-500.0,0.00028493,2]
[425958328,1782043889000,-504.3,0.00028493,2]
[425958335,1782043889000,-500.0,0.00028493,2]
[425958324,1782043889000,-4333.78,0.00028493,2]
[425958333,1782043889000,-500.0,0.00028493,2]
[425958329,1782043889000,-500.0,0.00028493,2]
[425958332,1782043889000,-698.41,0.00028493,2]
[425958331,1782043889000,-500.0,0.00028493,2]
[425958339,1782043889000,-500.0,0.00028493,2]
[425958338,1782043889000,-4103.82,0.00028493,2]
[425958343,1782043889000,-4126.05,0.00028493,2]
[425958337,1782043889000,-4621.09,0.00028493,2]
[425958336,1782043889000,-5253.04,0.00028493,2]
[425958334,1782043889000,-4355.02,0.00028493,2]
[425958341,1782043889000,-533.72130013,0.00028493,2]
[425958342,1782043889000,-500.0,0.00028493,2]
[425958346,1782043889000,-606.47,0.00028493,2]
[425958345,1782043889000,-5559.63,0.00028493,2]
[425958344,1782043889000,-5024.57,0.00028493,2]
[425958348,1782043889000,-629.21,0.00028493,2]
[425958354,1782043889000,-500.0,0.00028493,2]
[425958349,1782043889000,-500.0,0.00028493,2]
[425958350,1782043889000,-15685.64,0.00028493,2]
[425958351,1782043889000,-1070.24,0.00028493,2]
[425958352,1782043889000,-500.0,0.00028493,2]
[425958347,1782043889000,-619.09,0.00028493,2]
[425958353,1782043889000,-500.0,0.00028493,2]
[425958340,1782043889000,-699.32,0.00028493,2]
[425958325,1782043889000,-2092.72,0.00028493,2]
[425958296,1782043889000,-8823.24,0.00028493,2]
[425958330,1782043889000,-8399.97,0.00028493,2]
[425958327,1782043889000,-500.0,0.00028493,2]
[425958301,1782043889000,-560.48,0.00028493,2]
[425958298,1782043889000,-3507.03,0.00028493,2]
[425958299,1782043889000,-500.0,0.00028493,2]
[425958300,1782043889000,-500.0,0.00028493,2]
[425958297,1782043889000,-5634.66,0.00028493,2]
[425958308,1782043889000,-9170.86,0.00028493,2]
[425958306,1782043889000,-500.0,0.00028493,2]
[425958307,1782043889000,-577.38606193,0.00028493,2]
[425958305,1782043889000,-500.0,0.00028493,2]
[425958304,1782043889000,-11148.58,0.00028493,2]
[425958303,1782043889000,-557.99,0.00028493,2]
[425958311,1782043889000,-500.0,0.00028493,2]
[425958309,1782043889000,-500.0,0.00028493,2]
[425958310,1782043889000,-500.0,0.00028493,2]
[425958321,1782043889000,-583.26,0.00028493,2]
[425958316,1782043889000,-7580.7,0.00028493,2]
[425958315,1782043889000,-500.0,0.00028493,2]
[425958313,1782043889000,-577.03,0.00028493,2]
[425958314,1782043889000,-905.26,0.00028493,2]
[425958318,1782043889000,-7027.59,0.00028493,2]
[425958319,1782043889000,-7268.59,0.00028493,2]
[425958323,1782043889000,-500.0,0.00028493,2]
[425958312,1782043889000,-500.0,0.00028493,2]
[425958320,1782043889000,-3778.65,0.00028493,2]
[425958322,1782043889000,-500.0,0.00028493,2]
[425958317,1782043889000,-636.91,0.00028493,2]
[425958391,1782043890000,-2353.75,0.00028493,2]
[425958397,1782043890000,-1076.55,0.00028493,2]
[425958393,1782043890000,-530.95,0.00028493,2]
[425958392,1782043890000,-762.22,0.00028493,2]
[425958386,1782043890000,-500.0,0.00028493,2]
[425958387,1782043890000,-500.0,0.00028493,2]
[425958385,1782043890000,-500.0,0.00028493,2]
[425958389,1782043890000,-4078.59,0.00028493,2]
[425958384,1782043890000,-500.0,0.00028493,2]
[425958402,1782043890000,-500.0,0.00028493,2]
[425958390,1782043890000,-631.48,0.00028493,2]
[425958401,1782043890000,-605.58365149,0.00028493,2]
[425958404,1782043890000,-500.0,0.00028493,2]
[425958396,1782043890000,-598.89,0.00028493,2]
[425958394,1782043890000,-255.3633247,0.00028493,2]
[425958400,1782043890000,-804.51,0.00028493,2]
[425958399,1782043890000,-500.0,0.00028493,2]
[425958398,1782043890000,-500.0,0.00028493,2]
[425958407,1782043890000,-500.0,0.00028493,2]
[425958403,1782043890000,-152.14656906,0.00028493,2]
[425958413,1782043890000,-248.8169898,0.00028493,2]
[425958411,1782043890000,-1020.5,0.00028493,2]
[425958410,1782043890000,-500.0,0.00028493,2]
[425958405,1782043890000,-6494.57,0.00028493,2]
[425958382,1782043890000,-4241.73,0.00028493,2]
[425958395,1782043890000,-528.8,0.00028493,2]
[425958388,1782043890000,-500.0,0.00028493,2]
[425958368,1782043890000,-4723.87,0.00028493,2]
[425958383,1782043890000,-500.0,0.00028493,2]
[425958414,1782043890000,-6436.65,0.00028493,2]
[425958355,1782043890000,-1206.67,0.00028493,2]
[425958356,1782043890000,-946.64,0.00028493,2]
[425958357,1782043890000,-3488.29,0.00028493,2]
[425958359,1782043890000,-810.51,0.00028493,2]
[425958358,1782043890000,-535.14,0.00028493,2]
[425958361,1782043890000,-945.48,0.00028493,2]
[425958364,1782043890000,-500.0,0.00028493,2]
[425958367,1782043890000,-500.0,0.00028493,2]
[425958363,1782043890000,-904.85,0.00028493,2]
[425958366,1782043890000,-500.0,0.00028493,2]
[425958365,1782043890000,-717.93,0.00028493,2]
[425958381,1782043890000,-8710.73,0.00028493,2]
[425958360,1782043890000,-2865.46,0.00028493,2]
[425958369,1782043890000,-1000.0,0.00028493,2]
[425958370,1782043890000,-4918.1,0.00028493,2]
[425958373,1782043890000,-2754.08,0.00028493,2]
[425958372,1782043890000,-500.0,0.00028493,2]
[425958378,1782043890000,-500.0,0.00028493,2]
[425958379,1782043890000,-500.0,0.00028493,2]
[425958371,1782043890000,-500.0,0.00028493,2]
[425958374,1782043890000,-536.52710487,0.00028493,2]
[425958377,1782043890000,-500.0,0.00028493,2]
[425958375,1782043890000,-500.0,0.00028493,2]
[425958376,1782043890000,-4939.61,0.00028493,2]
[425958380,1782043890000,-500.0,0.00028493,2]
[425958362,1782043890000,-4226.28,0.00028493,2]
[425958412,1782043890000,-500.0,0.00028493,2]
[425958409,1782043890000,-4231.47,0.00028493,2]
[425958467,1782043890000,-500.0,0.00028767,2]
[425958445,1782043890000,-160.26828885,0.00028766,2]
[425958450,1782043890000,-725.19,0.00028767,2]
[425958447,1782043890000,-500.0,0.00028767,2]
[425958449,1782043890000,-500.0,0.00028767,2]
[425958448,1782043890000,-500.0,0.00028767,2]
[425958446,1782043890000,-501.82455083,0.00028767,2]
[425958453,1782043890000,-500.0,0.00028767,2]
[425958454,1782043890000,-500.0,0.00028767,2]
[425958451,1782043890000,-500.0,0.00028767,2]
[425958457,1782043890000,-500.0,0.00028767,2]
[425958462,1782043890000,-500.0,0.00028767,2]
[425958463,1782043890000,-728.37,0.00028767,2]
[425958442,1782043890000,-152.63,0.0002875,7]
[425958456,1782043890000,-551.55,0.00028767,2]
[425958461,1782043890000,-500.0,0.00028767,2]
[425958452,1782043890000,-632.28,0.00028767,2]
[425958455,1782043890000,-500.0,0.00028767,2]
[425958459,1782043890000,-500.0,0.00028767,2]
[425958465,1782043890000,-554.07,0.00028767,2]
[425958464,1782043890000,-500.0,0.00028767,2]
[425958466,1782043890000,-500.0,0.00028767,2]
[425958470,1782043890000,-500.0,0.00028767,2]
[425958469,1782043890000,-500.0,0.00028767,2]
[425958471,1782043890000,-500.0,0.00028767,2]
[425958468,1782043890000,-500.0,0.00028767,2]
[425958406,1782043890000,-399.54095249,0.00028493,2]
[425958460,1782043890000,-500.0,0.00028767,2]
[425958444,1782043890000,-2331.0,0.00028751,3]
[425958458,1782043890000,-638.67,0.00028767,2]
[425958440,1782043890000,-668.96,0.000287,7]
[425958443,1782043890000,-154.96,0.0002875,7]
[425958415,1782043890000,-643.09,0.00028493,2]
[425958416,1782043890000,-1902.38,0.00028493,2]
[425958426,1782043890000,-150.0,0.000285,2]
[425958418,1782043890000,-500.0,0.00028493,2]
[425958417,1782043890000,-1248.63,0.00028493,2]
[425958421,1782043890000,-1863.84,0.000285,7]
[425958424,1782043890000,-377.59197624,0.000285,2]
[425958420,1782043890000,-15000.0,0.000285,2]
[425958423,1782043890000,-927.77084688,0.000285,2]
[425958425,1782043890000,-175.0,0.000285,2]
[425958419,1782043890000,-41644.49,0.000285,7]
[425958422,1782043890000,-3388.61262222,0.000285,2]
[425958427,1782043890000,-621.78829552,0.00028551,2]
[425958408,1782043890000,-7023.89,0.00028493,2]
[425958441,1782043890000,-200.0,0.00028705,2]
[425958432,1782043890000,-152.63,0.0002863,2]
[425958437,1782043890000,-1069.9,0.00028653,7]
[425958436,1782043890000,-1101.37,0.00028653,7]
[425958435,1782043890000,-795.83,0.0002863,30]
[425958433,1782043890000,-154.96,0.0002863,2]
[425958439,1782043890000,-184350.47460741,0.000287,2]
[425958438,1782043890000,-10000.0,0.00028667,2]
[425958428,1782043890000,-510.0,0.00028566,3]
[425958429,1782043890000,-659.17,0.0002863,30]
[425958431,1782043890000,-796.09,0.0002863,30]
[425958430,1782043890000,-1101.37,0.0002863,30]
[425958434,1782043890000,-1069.9,0.0002863,30]
[425958504,1782043891000,-500.0,0.00028767,2]
[425958505,1782043891000,-488.86962608,0.00028767,2]
[425958507,1782043891000,-500.0,0.00028767,2]
[425958510,1782043891000,-500.0,0.00028767,2]
[425958506,1782043891000,-500.0,0.00028767,2]
[425958493,1782043891000,-500.0,0.00028767,2]
[425958509,1782043891000,-1011.4,0.00028767,2]
[425958508,1782043891000,-500.0,0.00028767,2]
[425958503,1782043891000,-506.49,0.00028767,2]
[425958497,1782043891000,-500.0,0.00028767,2]
[425958511,1782043891000,-500.0,0.00028767,2]
[425958512,1782043891000,-500.0,0.00028767,2]
[425958513,1782043891000,-500.0,0.00028767,2]
[425958517,1782043891000,-557.29,0.00028767,2]
[425958514,1782043891000,-647.36493611,0.00028767,2]
[425958521,1782043891000,-1874.59,0.00028767,2]
[425958518,1782043891000,-500.0,0.00028767,2]
[425958520,1782043891000,-500.0,0.00028767,2]
[425958523,1782043891000,-642.95,0.00028767,2]
[425958516,1782043891000,-1214.91,0.00028767,2]
[425958522,1782043891000,-500.0,0.00028767,2]
[425958519,1782043891000,-1508.78,0.00028767,2]
[425958524,1782043891000,-1153.68,0.00028767,2]
[425958525,1782043891000,-500.0,0.00028767,2]
[425958526,1782043891000,-500.0,0.00028767,2]
[425958533,1782043891000,-500.0,0.00028767,2]
[425958515,1782043891000,-500.0,0.00028767,2]
[425958491,1782043891000,-544.21,0.00028767,2]
[425958530,1782043891000,-848.5,0.00028767,2]
[425958494,1782043891000,-531.49599608,0.00028767,2]
[425958475,1782043891000,-500.0,0.00028767,2]
[425958474,1782043891000,-500.0,0.00028767,2]
[425958472,1782043891000,-500.0,0.00028767,2]
[425958473,1782043891000,-500.0,0.00028767,2]
[425958476,1782043891000,-270.46056362,0.00028767,2]
[425958477,1782043891000,-500.0,0.00028767,2]
[425958480,1782043891000,-1209.48,0.00028767,2]
[425958487,1782043891000,-500.0,0.00028767,2]
[425958479,1782043891000,-605.82,0.00028767,2]
[425958478,1782043891000,-500.0,0.00028767,2]
[425958488,1782043891000,-500.0,0.00028767,2]
[425958481,1782043891000,-500.0,0.00028767,2]
[425958498,1782043891000,-287.82845488,0.00028767,2]
[425958484,1782043891000,-500.0,0.00028767,2]
[425958482,1782043891000,-500.0,0.00028767,2]
[425958486,1782043891000,-617.24,0.00028767,2]
[425958485,1782043891000,-500.0,0.00028767,2]
[425958490,1782043891000,-500.0,0.00028767,2]
[425958501,1782043891000,-500.0,0.00028767,2]
[425958500,1782043891000,-500.0,0.00028767,2]
[425958502,1782043891000,-500.0,0.00028767,2]
[425958489,1782043891000,-500.0,0.00028767,2]
[425958495,1782043891000,-500.0,0.00028767,2]
[425958496,1782043891000,-500.0,0.00028767,2]
[425958499,1782043891000,-1262.83,0.00028767,2]
[425958492,1782043891000,-773.57,0.00028767,2]
[425958483,1782043891000,-337.67375737,0.00028767,2]
[425958528,1782043891000,-500.0,0.00028767,2]
[425958536,1782043891000,-500.0,0.00028767,2]
[425958527,1782043891000,-500.0,0.00028767,2]
[425958568,1782043891000,-569.1,0.00028767,2]
[425958567,1782043891000,-587.33,0.00028767,2]
[425958571,1782043891000,-3528.02,0.00028767,2]
[425958561,1782043891000,-500.0,0.00028767,2]
[425958560,1782043891000,-1014.3,0.00028767,2]
[425958559,1782043891000,-616.99,0.00028767,2]
[425958563,1782043891000,-167.15875218,0.00028767,2]
[425958564,1782043891000,-552.11,0.00028767,2]
[425958569,1782043891000,-500.0,0.00028767,2]
[425958573,1782043891000,-500.0,0.00028767,2]
[425958576,1782043891000,-500.0,0.00028767,2]
[425958572,1782043891000,-615.65,0.00028767,2]
[425958566,1782043891000,-1083.28,0.00028767,2]
[425958579,1782043891000,-500.0,0.00028767,2]
[425958577,1782043891000,-637.34,0.00028767,2]
[425958582,1782043891000,-500.0,0.00028767,2]
[425958575,1782043891000,-500.0,0.00028767,2]
[425958574,1782043891000,-500.0,0.00028767,2]
[425958578,1782043891000,-547.85,0.00028767,2]
[425958581,1782043891000,-500.0,0.00028767,2]
[425958583,1782043891000,-541.30411231,0.00028767,2]
[425958587,1782043891000,-500.0,0.00028767,2]
[425958589,1782043891000,-500.0,0.00028767,2]
[425958588,1782043891000,-536.54,0.00028767,2]
[425958585,1782043891000,-500.0,0.00028767,2]
[425958531,1782043891000,-549.55,0.00028767,2]
[425958580,1782043891000,-500.0,0.00028767,2]
[425958565,1782043891000,-552.65,0.00028767,2]
[425958584,1782043891000,-692.57,0.00028767,2]
[425958570,1782043891000,-500.0,0.00028767,2]
[425958532,1782043891000,-500.0,0.00028767,2]
[425958534,1782043891000,-500.0,0.00028767,2]
[425958529,1782043891000,-500.0,0.00028767,2]
[425958535,1782043891000,-4131.53,0.00028767,2]
[425958586,1782043891000,-500.0,0.00028767,2]
[425958537,1782043891000,-584.43,0.00028767,2]
[425958541,1782043891000,-500.0,0.00028767,2]
[425958562,1782043891000,-500.0,0.00028767,2]
[425958547,1782043891000,-500.0,0.00028767,2]
[425958542,1782043891000,-553.37,0.00028767,2]
[425958539,1782043891000,-687.14,0.00028767,2]
[425958546,1782043891000,-500.0,0.00028767,2]
[425958543,1782043891000,-964.1,0.00028767,2]
[425958544,1782043891000,-500.0,0.00028767,2]
[425958538,1782043891000,-500.0,0.00028767,2]
[425958555,1782043891000,-577.55,0.00028767,2]
[425958540,1782043891000,-500.0,0.00028767,2]
[425958558,1782043891000,-363.04963481,0.00028767,2]
[425958556,1782043891000,-500.0,0.00028767,2]
[425958553,1782043891000,-500.0,0.00028767,2]
[425958551,1782043891000,-500.0,0.00028767,2]
[425958557,1782043891000,-273.8603171,0.00028767,2]
[425958552,1782043891000,-500.0,0.00028767,2]
[425958550,1782043891000,-500.0,0.00028767,2]
[425958548,1782043891000,-500.0,0.00028767,2]
[425958549,1782043891000,-500.0,0.00028767,2]
[425958545,1782043891000,-500.0,0.00028767,2]
[425958554,1782043891000,-798.72,0.00028767,2]
[425958625,1782043892000,-500.0,0.00028767,2]
[425958635,1782043892000,-500.0,0.00028767,2]
[425958626,1782043892000,-500.0,0.00028767,2]
[425958627,1782043892000,-635.31,0.00028767,2]
[425958631,1782043892000,-500.0,0.00028767,2]
[425958619,1782043892000,-500.0,0.00028767,2]
[425958624,1782043892000,-500.0,0.00028767,2]
[425958618,1782043892000,-624.61,0.00028767,2]
[425958623,1782043892000,-630.82,0.00028767,2]
[425958622,1782043892000,-680.74,0.00028767,2]
[425958628,1782043892000,-528.56,0.00028767,2]
[425958630,1782043892000,-501.5,0.00028767,2]
[425958644,1782043892000,-558.29,0.00028767,2]
[425958634,1782043892000,-500.0,0.00028767,2]
[425958633,1782043892000,-548.62,0.00028767,2]
[425958632,1782043892000,-160.19966796,0.00028767,2]
[425958636,1782043892000,-693.06,0.00028767,2]
[425958638,1782043892000,-500.0,0.00028767,2]
[425958648,1782043892000,-1453.59,0.00028767,2]
[425958649,1782043892000,-573.31,0.00028767,2]
[425958647,1782043892000,-500.0,0.00028767,2]
[425958639,1782043892000,-500.0,0.00028767,2]
[425958637,1782043892000,-500.0,0.00028767,2]
[425958642,1782043892000,-500.0,0.00028767,2]
[425958620,1782043892000,-720.95,0.00028767,2]
[425958629,1782043892000,-500.0,0.00028767,2]
[425958621,1782043892000,-773.87,0.00028767,2]
[425958613,1782043892000,-161.00287,0.00028767,2]
[425958616,1782043892000,-747.45,0.00028767,2]
[425958643,1782043892000,-500.0,0.00028767,2]
[425958590,1782043892000,-500.0,0.00028767,2]
[425958591,1782043892000,-1023.04,0.00028767,2]
[425958599,1782043892000,-799.33,0.00028767,2]
[425958597,1782043892000,-500.0,0.00028767,2]
[425958593,1782043892000,-500.0,0.00028767,2]
[425958592,1782043892000,-500.0,0.00028767,2]
[425958601,1782043892000,-500.0,0.00028767,2]
[425958596,1782043892000,-1667.9,0.00028767,2]
[425958602,1782043892000,-500.0,0.00028767,2]
[425958595,1782043892000,-500.0,0.00028767,2]
[425958594,1782043892000,-500.0,0.00028767,2]
[425958617,1782043892000,-615.15,0.00028767,2]
[425958600,1782043892000,-500.0,0.00028767,2]
[425958604,1782043892000,-325.80164562,0.00028767,2]
[425958605,1782043892000,-500.0,0.00028767,2]
[425958603,1782043892000,-500.0,0.00028767,2]
[425958606,1782043892000,-633.72,0.00028767,2]
[425958612,1782043892000,-884.8,0.00028767,2]
[425958609,1782043892000,-500.0,0.00028767,2]
[425958608,1782043892000,-500.0,0.00028767,2]
[425958607,1782043892000,-423.07364803,0.00028767,2]
[425958611,1782043892000,-500.0,0.00028767,2]
[425958610,1782043892000,-500.0,0.00028767,2]
[425958614,1782043892000,-500.0,0.00028767,2]
[425958615,1782043892000,-500.0,0.00028767,2]
[425958598,1782043892000,-500.0,0.00028767,2]
[425958640,1782043892000,-41216.394702,0.00028767,2]
[425958657,1782043892000,-977.28,0.00028767,2]
[425958645,1782043892000,-708.22,0.00028767,2]
[425958674,1782043892000,-500.0,0.00028767,2]
[425958681,1782043892000,-1529.65,0.00028767,2]
[425958675,1782043892000,-500.0,0.00028767,2]
[425958684,1782043892000,-500.0,0.00028767,2]
[425958686,1782043892000,-931.86,0.00028767,2]
[425958685,1782043892000,-563.62,0.00028767,2]
[425958683,1782043892000,-500.0,0.00028767,2]
[425958688,1782043892000,-500.0,0.00028767,2]
[425958697,1782043892000,-541.88,0.00028767,2]
[425958687,1782043892000,-500.0,0.00028767,2]
[425958696,1782043892000,-500.0,0.00028767,2]
[425958689,1782043892000,-500.0,0.00028767,2]
[425958691,1782043892000,-500.0,0.00028767,2]
[425958693,1782043892000,-924.32,0.00028767,2]
[425958690,1782043892000,-500.0,0.00028767,2]
[425958692,1782043892000,-444.59,0.00028767,2]
[425958694,1782043892000,-500.0,0.00028767,2]
[425958695,1782043892000,-500.0,0.00028767,2]
[425958698,1782043892000,-500.0,0.00028767,2]
[425958699,1782043892000,-500.0,0.00028767,2]
[425958646,1782043892000,-500.0,0.00028767,2]
[425958701,1782043892000,-500.0,0.00028767,2]
[425958703,1782043892000,-1577.47,0.00028767,2]
[425958702,1782043892000,-500.0,0.00028767,2]
[425958704,1782043892000,-764.28,0.00028767,2]
[425958679,1782043892000,-699.95,0.00028767,2]
[425958678,1782043892000,-500.0,0.00028767,2]
[425958700,1782043892000,-500.0,0.00028767,2]
[425958676,1782043892000,-507.71,0.00028767,2]
[425958682,1782043892000,-1485.17,0.00028767,2]
[425958641,1782043892000,-500.0,0.00028767,2]
[425958651,1782043892000,-500.0,0.00028767,2]
[425958658,1782043892000,-500.0,0.00028767,2]
[425958652,1782043892000,-825.1,0.00028767,2]
[425958654,1782043892000,-500.0,0.00028767,2]
[425958656,1782043892000,-835.02,0.00028767,2]
[425958653,1782043892000,-500.0,0.00028767,2]
[425958650,1782043892000,-1375.37,0.00028767,2]
[425958659,1782043892000,-500.0,0.00028767,2]
[425958660,1782043892000,-500.0,0.00028767,2]
[425958662,1782043892000,-500.0,0.00028767,2]
[425958672,1782043892000,-557.79,0.00028767,2]
[425958655,1782043892000,-500.0,0.00028767,2]
[425958663,1782043892000,-500.0,0.00028767,2]
[425958673,1782043892000,-629.13,0.00028767,2]
[425958671,1782043892000,-241.34251803,0.00028767,2]
[425958669,1782043892000,-500.0,0.00028767,2]
[425958668,1782043892000,-589.08,0.00028767,2]
[425958666,1782043892000,-500.0,0.00028767,2]
[425958680,1782043892000,-500.0,0.00028767,2]
[425958667,1782043892000,-500.0,0.00028767,2]
[425958664,1782043892000,-500.0,0.00028767,2]
[425958665,1782043892000,-500.0,0.00028767,2]
[425958661,1782043892000,-500.0,0.00028767,2]
[425958670,1782043892000,-505.74,0.00028767,2]
[425958677,1782043892000,-838.22,0.00028767,2]
[425958726,1782043893000,-500.0,0.00028767,2]
[425958738,1782043893000,-500.0,0.00028767,2]
[425958730,1782043893000,-500.0,0.00028767,2]
[425958733,1782043893000,-500.0,0.00028767,2]
[425958732,1782043893000,-500.0,0.00028767,2]
[425958734,1782043893000,-500.0,0.00028767,2]
[425958735,1782043893000,-1019.68,0.00028767,2]
[425958739,1782043893000,-500.0,0.00028767,2]
[425958740,1782043893000,-500.0,0.00028767,2]
[425958746,1782043893000,-384.46019677,0.00028767,2]
[425958743,1782043893000,-536.39,0.00028767,2]
[425958737,1782043893000,-500.0,0.00028767,2]
[425958742,1782043893000,-357.26631943,0.00028767,2]
[425958748,1782043893000,-3542.95,0.00028767,2]
[425958741,1782043893000,-500.0,0.00028767,2]
[425958745,1782043893000,-500.0,0.00028767,2]
[425958736,1782043893000,-509.74,0.00028767,2]
[425958744,1782043893000,-769.47,0.00028767,2]
[425958749,1782043893000,-500.0,0.00028767,2]
[425958728,1782043893000,-711.48,0.00028767,2]
[425958747,1782043893000,-476.983084,0.00028767,2]
[425958727,1782043893000,-4286.1,0.00028767,2]
[425958714,1782043893000,-500.0,0.00028767,2]
[425958729,1782043893000,-500.0,0.00028767,2]
[425958705,1782043893000,-500.0,0.00028767,2]
[425958708,1782043893000,-500.0,0.00028767,2]
[425958709,1782043893000,-500.0,0.00028767,2]
[425958710,1782043893000,-500.0,0.00028767,2]
[425958706,1782043893000,-500.0,0.00028767,2]
[425958707,1782043893000,-500.0,0.00028767,2]
[425958712,1782043893000,-1140.14,0.00028767,2]
[425958711,1782043893000,-500.0,0.00028767,2]
[425958721,1782043893000,-500.0,0.00028767,2]
[425958752,1782043893000,-500.0,0.00028767,2]
[425958722,1782043893000,-500.0,0.00028767,2]
[425958720,1782043893000,-620.76,0.00028767,2]
[425958719,1782043893000,-500.0,0.00028767,2]
[425958715,1782043893000,-427.02574878,0.00028767,2]
[425958718,1782043893000,-500.0,0.00028767,2]
[425958716,1782043893000,-500.0,0.00028767,2]